Cogmind - Beta 13 @@@ ROGUE MODE // 2024.04.19 @ 13:25:17 Player: monistgf Result: Destroyed by S-27 Virus with Autogun Performance ------------- Evolutions (5) 2500 Regions Visited (11) 2200 Robots Destroyed (69) 345 Value Destroyed (2758) 2758 Prototype IDs (12) 240 Alien Tech Used (0) 0 Bonus (1033) 1033 TOTAL SCORE: 9076 Bonus ------- High Alert Combat Kills 33 Met Warlord at Base 500 MAIN.C Attacked Warlord 500 Cogmind --------- Core Integrity 0/1000 Matter 253/300 Energy 170/170 System Corruption 5% Temperature Cool (0) Movement Walking (190) Ox1 Location -4/Proximity Caves Parts ------- > --- POWER (1) -------- Light Antimatter Reactor > --- PROPULSION (3) --- Flexi-carbon Leg Flexi-carbon Leg > --- UTILITY (10) ----- Advanced Heat Sink High-capacity Storage Unit Enhanced Optical Array 0b10 Decoder Chip [Scout] > --- WEAPON (3) ------- Heavy Pick Vortex Lance (fused) > --- INVENTORY (20) --- Hover Unit Improved Gravmag System Combat Airjet Antigrav System Antigrav System Antigrav System Antigrav System High-capacity Matter Pod (200) Advanced Shield Generator Enhanced Gauss Cannon Heavy Pick Heavy Pick Heavy Pick Heavy Pick Vortex Lance (25) Peak State ------------ > --- POWER ------------ Light Antimatter Reactor > --- PROPULSION ------- Armored Huge Wheel > --- UTILITY ---------- Improved Cooling System High-capacity Storage Unit Machine Analyzer Enhanced Optical Array Improved Sensor Array 0b10 Decoder Chip [Scout] Improved Actuator Array Propulsion Shielding Layered Light Armor Plating Centrium Light Armor Plating > --- WEAPON ----------- Power Sword Power Sword Plasma Lance > --- INVENTORY -------- Micro Fission Core Armored Huge Wheel Improved Gravmag System Combat Airjet Antigrav System Antigrav System Antigrav System Antigrav System High-capacity Matter Pod 0b10 Decoder Chip [Scout] Advanced Shield Generator Enhanced Gauss Cannon Heavy Pick Heavy Pick Heavy Pick Heavy Pick Heavy Pick Vortex Lance Vortex Lance [Rating: 83] Favorites ----------- Power Neutrino Core Engine Light Ion Engine Power Core Neutrino Core Reactor Light Antimatter Reactor Propulsion Wheel Treads Light Treads Leg Flexi-carbon Leg Wheel Wheel Hover Unit Hover Unit Utility High-capacity Storage Unit Device Microactuators Storage High-capacity Storage Unit Processor Machine Analyzer Protection Layered Light Armor Plating Weapon Heavy Pick Energy Gun Pulse Rifle Ballistic Gun Enhanced Autogun Ballistic Cannon Enhanced Gauss Cannon Launcher Rocket Launcher Impact Weapon Maul Slashing Weapon Power Sword Piercing Weapon Heavy Pick Build | -11 -10 -9 -8 -8 -7 -6 -5 -5 -5 -5 -4 ------- Run | Yrd Mat Mat Mat Sto Fac Fac Fac Upp Upp War Pro Slots Evolved 10 | . . 2 2 . 2 2 2 . . . . Power . | . . . . . . . . . . . . Propulsion 1 | . . 1 . . . . . . . . . Utility 8 | . . . 2 . 2 2 2 . . . . Weapon 1 | . . 1 . . . . . . . . . Parts Attached 127 | . 1 7 15 9 6 25 29 3 5 13 14 Power 9 | . . . 1 . 1 2 1 . . 2 2 Engine 2 | . . . 1 . . 1 . . . . . Core 5 | . . . . . 1 1 1 . . 1 1 Reactor 2 | . . . . . . . . . . 1 1 Propulsion 22 | . . 3 1 4 1 1 6 1 1 1 3 Treads 4 | . . 1 1 2 . . . . . . . Leg 2 | . . . . . . . . . . . 2 Wheel 15 | . . 2 . 2 1 1 6 1 1 1 . Hover 1 | . . . . . . . . . . . 1 Flight . | . . . . . . . . . . . . Utility 49 | . 1 1 5 1 2 9 18 2 2 5 3 Device 23 | . . . 2 1 1 4 10 2 2 . 1 Storage 2 | . . 1 . . . . . . . . 1 Processor 4 | . . . 1 . . 1 . . . 1 1 Hackware . | . . . . . . . . . . . . Protection 20 | . 1 . 2 . 1 4 8 . . 4 . Artifact . | . . . . . . . . . . . . Weapon 47 | . . 3 8 4 2 13 4 . 2 5 6 Energy Gun 5 | . . . 3 . 1 1 . . . . . Energy Cannon . | . . . . . . . . . . . . Ballistic Gun 15 | . . 3 5 3 1 3 . . . . . Ballistic Cannon 1 | . . . . . . . . . 1 . . Launcher 5 | . . . . . . 2 2 . 1 . . Special Weapon . | . . . . . . . . . . . . Impact Weapon 3 | . . . . 1 . 2 . . . . . Slashing Weapon 4 | . . . . . . 1 . . . 3 . Piercing Weapon 14 | . . . . . . 4 2 . . 2 6 Special Melee Weapon . | . . . . . . . . . . . . Unidentified Prototypes 6 | . . . 3 . . . . . . 3 . Parts Lost 37 | . . . 3 2 . . 7 3 3 13 6 Power 4 | . . . 1 . . . . . . 2 1 Propulsion 7 | . . . . 2 . . 1 1 1 1 1 Utility 21 | . . . 2 . . . 5 2 2 7 3 Weapon 5 | . . . . . . . 1 . . 3 1 Highest Loss Streak 9 | . . . 1 2 . . 4 2 3 9 4 To Critical Strikes . | . . . . . . . . . . . . Average Slot Usage (%) 85 | . 99 99 91 99 93 92 89 89 91 75 54 Engine 2 | . 14 11 8 9 7 . . . . . . Core 3 | . . . . . . 6 5 5 5 4 . Treads 1 | . . 11 9 9 . . . . . . . Leg 1 | . 28 . . . . . . . . . 9 Wheel 10 | . . 22 18 17 15 13 10 11 10 5 . Device 20 | . . . 11 18 23 20 24 30 32 25 4 Storage 6 | . 14 11 9 9 7 6 5 5 5 5 4 Processor 9 | . . . . 9 7 9 11 11 11 12 10 Protection 6 | . 13 11 8 . 7 16 10 5 4 3 . Energy Gun 2 | . 14 8 4 8 . 4 . . . . . Ballistic Gun 5 | . 14 24 22 18 15 6 . . . . . Slashing Weapon 2 | . . . . . . 2 2 . . 7 . Piercing Weapon 7 | . . . . . . 3 13 17 15 4 16 Naked Turns . | . . . . . . . . . . . . Heaviest Build 104 | 10 13 53 59 54 61 77 104 82 87 78 64 Greatest Support 40 | 20 20 20 20 40 38 38 38 38 38 28 40 Greatest Overweight (x) 3 | . . 2 2 2 2 2 3 2 2 2 3 Average Overweight (x) 1 | . . . 2 1 1 1 1 2 2 1 1 Largest Inventory Capacity 20 | . 8 20 20 20 20 20 20 20 20 20 20 Average Capacity 19 | . 8 12 20 20 20 20 20 20 20 20 19 Most Carried 20 | . 6 9 17 20 20 20 20 20 20 20 18 Average Carried 17 | . 6 5 13 19 19 19 19 18 19 19 13 Final Capacity 20 | 8 8 20 20 20 20 20 20 20 20 20 20 Final Carried 20 | 6 6 9 17 20 20 20 20 20 20 18 15 Class Distribution -------------------- 53% | Gladiator 20% | Mutant 7% | Scavenger-Tank 7% | Gunner 6% | Tank Dominant Class ---------------- Mutant | -10/Materials Tank | -9/Materials Tank | -8/Materials Gunner | -8/Storage Mutant | -7/Factory Scavenger-Tank | -6/Factory Gladiator | -5/Factory Gladiator | -5/Upper Caves Gladiator | -5/Upper Caves Gladiator | -5/Warlord Mutant | -4/Proximity Caves Resources | -11 -10 -9 -8 -8 -7 -6 -5 -5 -5 -5 -4 ----------- Run | Yrd Mat Mat Mat Sto Fac Fac Fac Upp Upp War Pro Matter Collected 2531 | 191 28 88 167 456 138 245 482 131 49 433 123 Remotely . | . . . . . . . . . . . . Salvage Created 2792 | . 115 164 375 648 138 401 501 114 66 . 270 Parts 174 | . 6 11 30 37 10 12 42 6 8 . 12 Haulers Intercepted 3 | . 1 . 1 . . 1 . . . . . Recyclers Shooed . | . . . . . . . . . . . . Parts Field Recycled . | . . . . . . . . . . . . Retrieved Matter . | . . . . . . . . . . . . Parts Self-Destructed 17 | . . . . . . . . 4 5 . 8 Prevented . | . . . . . . . . . . . . Kills | -11 -10 -9 -8 -8 -7 -6 -5 -5 -5 -5 -4 ------- Run | Yrd Mat Mat Mat Sto Fac Fac Fac Upp Upp War Pro Combat Hostiles Destroyed 57 | . 2 3 8 13 2 6 10 2 5 . 6 Melee 16 | . . . . . . 1 7 2 . . 6 Guns 30 | . 2 3 8 13 2 2 . . . . . AOE 11 | . . . . . . 3 3 . 5 . . Classes Destroyed 13 | . 3 2 1 1 1 . 3 . . . 2 Worker 2 | . . . . . . . 2 . . . . Builder 1 | . . . . . 1 . . . . . . Tunneler 1 | . . . . . . . 1 . . . . Hauler 3 | . 1 . 1 . . 1 . . . . . Operator 3 | . . . 2 . . 1 . . . . . Drone 1 | . . . . . . . . . . . 1 Watcher 2 | . . 1 . . 1 . . . . . . Swarmer 13 | . 1 . 3 . . . 3 . 5 . 1 Grunt 18 | . 1 1 3 6 . 4 . . . . 3 Brawler 1 | . . . . . . . . . . . 1 Sentry 13 | . . 2 2 6 . 2 1 . . . . Hunter 5 | . . . . 1 2 . 2 . . . . Programmer 6 | . . . . . . . 4 2 . . . Best Kill Streak 7 | . 2 2 4 3 2 3 7 2 5 . 3 Combat Bots Only 7 | . 1 2 3 3 2 3 7 2 5 . 3 Max Kills in Single Turn 3 | . 1 1 1 1 2 2 2 1 3 . 1 Gunslinging . | . . . . . . . . . . . . Exploded 3 | . . . . . . 2 2 . 3 . . Melee 1 | . . . . . . 1 1 1 . . 1 Uniques/NPCs Destroyed . | . . . . . . . . . . . . Combat | -11 -10 -9 -8 -8 -7 -6 -5 -5 -5 -5 -4 -------- Run | Yrd Mat Mat Mat Sto Fac Fac Fac Upp Upp War Pro Hostile Shots Fired 527 | . 13 22 35 38 14 46 139 28 11 122 59 Missed 152 | . 6 7 6 11 3 13 44 8 1 45 8 Damage Taken 6461 | . 67 206 383 401 171 397 1706 347 159 1689 935 Core 1296 | . 9 30 87 74 59 37 152 37 36 357 418 Absorbed by Shields . | . . . . . . . . . . . . Redirected to Shielding 44 | . . . . . . . . . . 44 . Regen/Repaired (Parts) 97 | . . . . . . . . . . 97 . Core Remaining (%) 90 | 100 96 92 . 70 91 95 . . . . . Volleys Fired 136 | . 9 14 25 39 5 15 2 . 27 . . Largest 3 | . 2 3 3 3 3 3 2 . 1 . . Hottest 129 | . 60 83 111 111 113 129 66 . 57 . . Shots Fired 336 | . 18 42 75 115 14 41 4 . 27 . . Gun 301 | . 18 42 75 115 14 37 . . . . . Cannon 21 | . . . . . . . . . 21 . . Launcher 14 | . . . . . . 4 4 . 6 . . Special . | . . . . . . . . . . . . Kinetic 230 | . 9 28 59 78 10 25 . . 21 . . Thermal 92 | . 9 14 16 37 4 12 . . . . . Explosive 14 | . . . . . . 4 4 . 6 . . Electromagnetic . | . . . . . . . . . . . . Robot Hit Streak 12 | . 6 8 9 12 7 8 4 . 3 . . Robot Miss Streak 4 | . 2 2 3 4 1 2 . . 2 . . Penetration Max . | . . . . . . . . . . . . Secondary Targets 2 | . . 1 . . 1 . . . . . . Max Gunslinging Chain 1 | . . 1 . . 1 . . . . . . Shots Hit Robots 242 | . 10 28 46 61 11 31 29 5 3 3 15 Core Hits 131 | . 6 10 21 27 8 21 21 3 5 2 7 Critical Kills 1 | . . . . 1 . . . . . . . Critical Parts Destroyed 2 | . . 1 . 1 . . . . . . . Critical Strikes 10 | . . 1 . 2 . . 2 1 . 1 3 Destroy 3 | . . 1 . 2 . . . . . . . Sever 1 | . . . . . . . . . . 1 . Impale 3 | . . . . . . . 2 1 . . . Sunder 3 | . . . . . . . . . . . 3 Melee Attacks 98 | . . . . 1 2 15 43 8 4 3 22 Impact 11 | . . . . 1 2 8 . . . . . Slashing 13 | . . . . . . 3 8 . . 2 . Piercing 59 | . . . . . . 4 35 8 4 1 7 Entropic 15 | . . . . . . . . . . . 15 Sneak Attacks 3 | . . . . . . . 3 . . . . Combat Hostiles . | . . . . . . . . . . . . Follow-up Attacks 27 | . . . . . . 3 13 3 . 2 6 Damage Inflicted 6377 | . 112 270 672 1025 200 1263 1210 167 329 134 995 Guns 2700 | . 112 270 672 1025 155 466 . . . . . Cannons . | . . . . . . . . . . . . Explosions 1080 | . . . . . . 555 196 . 329 . . Melee 2584 | . . . . . 45 242 1014 167 . 121 995 Ramming 13 | . . . . . . . . . . 13 . Kinetic 1842 | . 36 182 485 686 105 348 . . . . . Thermal 858 | . 76 88 187 339 50 118 . . . . . Explosive 1080 | . . . . . . 555 196 . 329 . . Electromagnetic . | . . . . . . . . . . . . Impact 45 | . . . . . 45 . . . . . . Slashing 319 | . . . . . . 132 102 . . 85 . Piercing 1392 | . . . . . . 110 912 167 . 36 167 Entropic 828 | . . . . . . . . . . . 828 Highest Corruption 7 | . . . . . . 2 5 7 7 7 5 Average Corruption 4 | . . . . . . 2 3 5 7 7 5 Corruption Purged . | . . . . . . . . . . . . Corruption Blocked . | . . . . . . . . . . . . Effects 67 | . . . . . . 10 4 12 20 2 19 Message Errors 17 | . . . . . . 2 2 1 7 1 4 Matter Fused 14 | . . . . . . 3 1 1 4 . 5 Heat Flow Errors 8 | . . . . . . 1 . 2 1 1 3 Energy Discharges 7 | . . . . . . . . 4 1 . 2 Parts Fused 2 | . . . . . . . 1 . . . 1 Data Loss (minor) 10 | . . . . . . 1 . 1 6 . 2 Data Loss (major) 5 | . . . . . . . . 3 1 . 1 Misfires 1 | . . . . . . 1 . . . . . Alerts 2 | . . . . . . 1 . . . . 1 Weapon Failures 1 | . . . . . . 1 . . . . . Overload Shots . | . . . . . . . . . . . . Overflow Damage 250 | . . . . . 10 78 . . 31 . 131 Projectiles . | . . . . . . . . . . . . Explosions 65 | . . . . . . 34 . . 31 . . Melee 185 | . . . . . 10 44 . . . . 131 Knockbacks . | . . . . . . . . . . . . Impact . | . . . . . . . . . . . . Kinetic . | . . . . . . . . . . . . Secondary . | . . . . . . . . . . . . Self-Inflicted Damage 6 | . . . . . . . . . . 6 . Shots . | . . . . . . . . . . . . Rammed 3 | . . . . . . . . . . 3 . Targets Rammed 3 | . . . . . . . . . . 3 . Kicked . | . . . . . . . . . . . . Crushed . | . . . . . . . . . . . . Highest Temperature 288 | . 76 196 114 288 212 249 12 240 167 103 210 Average Temperature 69 | . 34 82 40 68 110 95 7 120 86 73 96 Received Heat Transfer 982 | . 12 81 126 189 . 126 45 12 . 186 205 Siege Activations . | . . . . . . . . . . . . Robots Corrupted . | . . . . . . . . . . . . Combat Hostiles . | . . . . . . . . . . . . Parts Fried 1 | . . . . . 1 . . . . . . Impact Corruptions 1 | . . . . . 1 . . . . . . Robots Melted . | . . . . . . . . . . . . Combat Hostiles . | . . . . . . . . . . . . Parts Melted 1 | . . . 1 . . . . . . . . Heat Transferred 1855 | . 175 200 407 740 111 222 . . . . . Parts Sabotaged . | . . . . . . . . . . . . Parts Stolen . | . . . . . . . . . . . . Parts Stripped . | . . . . . . . . . . . . Power Chain Reactions . | . . . . . . . . . . . . Alert | -11 -10 -9 -8 -8 -7 -6 -5 -5 -5 -5 -4 ------- Run | Yrd Mat Mat Mat Sto Fac Fac Fac Upp Upp War Pro Peak Influence 492 | . 77 144 315 492 246 188 276 . . . . Initial 139 | . . 32 60 69 139 120 59 . . . . Average 136 | . 32 89 182 280 158 92 108 . . . . Maximum Alert Level 2 | . . . 1 2 1 . 1 . . . . Low Security (%) 84 | . 100 100 67 26 94 100 97 . . . . Level 1 13 | . . . 32 57 5 . 2 . . . . Level 2 2 | . . . . 15 . . . . . . . Level 3 . | . . . . . . . . . . . . Level 4 . | . . . . . . . . . . . . Level 5 . | . . . . . . . . . . . . High Security . | . . . . . . . . . . . . Max Security . | . . . . . . . . . . . . Squads Dispatched 12 | . . 1 . 2 2 4 3 . . . . Investigation 5 | . . . . . 2 2 1 . . . . Extermination 3 | . . . . . . 1 2 . . . . Reinforcement 4 | . . 1 . 2 . 1 . . . . . Assault . | . . . . . . . . . . . . Garrison . | . . . . . . . . . . . . Intercept . | . . . . . . . . . . . . Searches Triggered . | . . . . . . . . . . . . Construction Impeded . | . . . . . . . . . . . . Haulers Reinforced 1 | . . . . . . 1 . . . . . Active Scanning Responses . | . . . . . . . . . . . . Cargo Convoy Interrupts . | . . . . . . . . . . . . Stealth | -11 -10 -9 -8 -8 -7 -6 -5 -5 -5 -5 -4 --------- Run | Yrd Mat Mat Mat Sto Fac Fac Fac Upp Upp War Pro Distress Signals 4 | . . 1 2 . . 1 . . . . . Communications Jammed . | . . . . . . . . . . . . Distress Signals . | . . . . . . . . . . . . Times Spotted 132 | . 5 6 14 17 5 13 12 3 5 37 15 Peak Tracking Total 13 | . 4 3 4 4 2 4 6 3 5 13 5 Tactical Retreats 13 | . 1 . 2 . . 2 . 1 . 6 1 Traps | -11 -10 -9 -8 -8 -7 -6 -5 -5 -5 -5 -4 ------- Run | Yrd Mat Mat Mat Sto Fac Fac Fac Upp Upp War Pro Traps Triggered 4 | . . . . . 1 1 2 . . . . Indirectly . | . . . . . . . . . . . . Trap Hack Attempts . | . . . . . . . . . . . . Triggered . | . . . . . . . . . . . . Disarmed . | . . . . . . . . . . . . Reprogrammed . | . . . . . . . . . . . . Reused . | . . . . . . . . . . . . Traps Extracted . | . . . . . . . . . . . . Installed . | . . . . . . . . . . . . Triggered 21 | . . . . . . . . . 1 20 . Machines | -11 -10 -9 -8 -8 -7 -6 -5 -5 -5 -5 -4 ---------- Run | Yrd Mat Mat Mat Sto Fac Fac Fac Upp Upp War Pro Machines Disabled 5 | . . . . 3 . 2 . . . . . Max in Single Turn 2 | . . . . 1 . 2 . . . . . Machines Repaired . | . . . . . . . . . . . . Machines Dismantled . | . . . . . . . . . . . . Machines Sabotaged . | . . . . . . . . . . . . Overloaded Fab Kills . | . . . . . . . . . . . . Hacking | -11 -10 -9 -8 -8 -7 -6 -5 -5 -5 -5 -4 --------- Run | Yrd Mat Mat Mat Sto Fac Fac Fac Upp Upp War Pro Machines Accessed 24 | . . . 2 3 2 5 5 1 . 6 . Terminals 13 | . . . 2 3 2 3 3 . . . . Fabricators 3 | . . . . . . 2 1 . . . . Repair Stations . | . . . . . . . . . . . . Recycling Units . | . . . . . . . . . . . . Scanalyzers . | . . . . . . . . . . . . Garrison Access 1 | . . . . . . . 1 . . . . Total Hacks 54 | . . . 6 5 4 16 11 1 . 11 . Successful 28 | . . . 3 3 1 6 3 1 . 11 . Failed 26 | . . . 3 2 3 10 8 . . . . Catastrophic 10 | . . . 1 . 3 2 4 . . . . Database Lockouts . | . . . . . . . . . . . . Manual 18 | . . . 4 3 2 7 2 . . . . Terminals 35 | . . . 6 5 4 12 8 . . . . Fabricators 5 | . . . . . . 4 1 . . . . Repair Stations . | . . . . . . . . . . . . Recycling Units . | . . . . . . . . . . . . Scanalyzers . | . . . . . . . . . . . . Garrison Access 2 | . . . . . . . 2 . . . . Terminal Hacks 23 | . . . 2 2 . 5 2 1 . 11 . Record 9 | . . . . . . . . . . 9 . Prototype ID Bank 3 | . . . . . . 2 1 . . . . Open Door 5 | . . . . 2 . . . 1 . 2 . Alert Level 1 | . . . 1 . . . . . . . . Unreport Threat 1 | . . . 1 . . . . . . . . Locate Traps 1 | . . . . . . 1 . . . . . Hauler Manifests 1 | . . . . . . 1 . . . . . Zone Layout 2 | . . . . . . 1 1 . . . . Fabricator Hacks . | . . . . . . . . . . . . Repair Station Hacks . | . . . . . . . . . . . . Recycling Unit Hacks . | . . . . . . . . . . . . Scanalyzer . | . . . . . . . . . . . . Garrison Access Hacks . | . . . . . . . . . . . . Unauthorized Hacks 5 | . . . 1 1 1 1 1 . . . . Terminals 5 | . . . 1 1 1 1 1 . . . . Botnet 5 | . . . 1 1 1 1 1 . . . . Fabricators . | . . . . . . . . . . . . Repair Stations . | . . . . . . . . . . . . Recycling Units . | . . . . . . . . . . . . Scanalyzers . | . . . . . . . . . . . . Garrison Access . | . . . . . . . . . . . . Data Cores Recovered 3 | . . . 2 . . 1 . . . . . Used 2 | . . . 1 . . 1 . . . . . Hacking Detections 14 | . . . 2 1 2 4 5 . . . . Full Trace Events 4 | . . . . . 1 2 1 . . . . Feedback Events . | . . . . . . . . . . . . Feedback Blocked . | . . . . . . . . . . . . Robot Schematics Acquired . | . . . . . . . . . . . . Robots Built . | . . . . . . . . . . . . Authchips . | . . . . . . . . . . . . Time . | . . . . . . . . . . . . Total Robot Build Rating . | . . . . . . . . . . . . Part Schematics Acquired . | . . . . . . . . . . . . Parts Built . | . . . . . . . . . . . . Authchips . | . . . . . . . . . . . . Time . | . . . . . . . . . . . . Total Part Build Rating . | . . . . . . . . . . . . Parts Repaired . | . . . . . . . . . . . . Time . | . . . . . . . . . . . . Parts Recycled . | . . . . . . . . . . . . Recycled Matter . | . . . . . . . . . . . . Retrieved Matter . | . . . . . . . . . . . . Retrieved Components . | . . . . . . . . . . . . Parts Scanalyzed . | . . . . . . . . . . . . Part Schematics Acquired . | . . . . . . . . . . . . Parts Damaged . | . . . . . . . . . . . . Bothacking | -11 -10 -9 -8 -8 -7 -6 -5 -5 -5 -5 -4 ------------ Run | Yrd Mat Mat Mat Sto Fac Fac Fac Upp Upp War Pro Used RIF Installer . | . . . . . . . . . . . . Robots Hacked . | . . . . . . . . . . . . Non-combat . | . . . . . . . . . . . . Combat . | . . . . . . . . . . . . Robot Hacks Applied . | . . . . . . . . . . . . Relay Couplers Released . | . . . . . . . . . . . . Fabnet Peak Effective % . | . . . . . . . . . . . . Robots Rewired . | . . . . . . . . . . . . Allies Hacked . | . . . . . . . . . . . . Hacks Repelled . | . . . . . . . . . . . . Allies | -11 -10 -9 -8 -8 -7 -6 -5 -5 -5 -5 -4 -------- Run | Yrd Mat Mat Mat Sto Fac Fac Fac Upp Upp War Pro Total Allies . | . . . . . . . . . . . . Largest Group . | . . . . . . . . . . . . Highest-Rated Group . | . . . . . . . . . . . . Highest-Rated Ally . | . . . . . . . . . . . . Total Orders . | . . . . . . . . . . . . Ally Attacks . | . . . . . . . . . . . . Total Damage . | . . . . . . . . . . . . Kills . | . . . . . . . . . . . . Allies Corrupted . | . . . . . . . . . . . . Allies Melted . | . . . . . . . . . . . . Intel | -11 -10 -9 -8 -8 -7 -6 -5 -5 -5 -5 -4 ------- Run | Yrd Mat Mat Mat Sto Fac Fac Fac Upp Upp War Pro Robot Analysis Total . | . . . . . . . . . . . . Derelict Logs Recovered 3 | . . . . . . . . 2 1 . . Drone Launches . | . . . . . . . . . . . . Drone Recoveries . | . . . . . . . . . . . . Exploration | -11 -10 -9 -8 -8 -7 -6 -5 -5 -5 -5 -4 ------------- Run | Yrd Mat Mat Mat Sto Fac Fac Fac Upp Upp War Pro Turns Passed 6270 | . 194 213 397 435 328 884 666 575 658 1203 717 Spaces Moved 4008 | 1 135 152 223 254 282 596 429 466 266 875 329 Core 3 | . . . . . . . . . . . 3 Treads 3 | . . . . 3 . . . . . . . Legs 418 | 1 135 . . . . . . . . . 282 Wheels 3584 | . . 152 223 251 282 596 429 466 266 875 44 Hover . | . . . . . . . . . . . . Flight . | . . . . . . . . . . . . Fastest Speed 80 | 120 120 80 110 110 105 105 105 120 120 115 115 Average Speed 121 | 120 120 94 110 111 105 105 118 120 120 129 178 Slowest Speed 250 | 120 120 110 110 250 110 120 145 120 130 130 200 Overloaded Moves . | . . . . . . . . . . . . Propulsion Burnouts . | . . . . . . . . . . . . Robots Hopped . | . . . . . . . . . . . . Cave-ins Triggered . | . . . . . . . . . . . . Exploration Rate (%) 35 | 2 32 26 23 42 9 14 13 71 56 93 50 Regions Visited 11 Branch Regions 5 Pre-discovered Areas 2 | . . . . . . . . 1 . 1 . Known Exits Taken . | . . . . . . . . . . . . Unknown Exits Taken 11 | 1 1 1 1 1 1 1 1 1 1 1 . Scrap Searched 5 | . . . . . . . . 3 2 . . Spaces Dug 27 | . . . . . 1 7 1 . 18 . . Terrain Destroyed 116 | . . . . . 1 18 24 . 73 . . Melee 10 | . . . . . 1 7 1 . 1 . . Projectile 22 | . . . . . . . . . 22 . . AOE 84 | . . . . . . 11 23 . 50 . . Terrain Rammed . | . . . . . . . . . . . . Walls Destroyed . | . . . . . . . . . . . . Machines Disabled . | . . . . . . . . . . . . Actions | -11 -10 -9 -8 -8 -7 -6 -5 -5 -5 -5 -4 --------- Run | Yrd Mat Mat Mat Sto Fac Fac Fac Upp Upp War Pro Total 5130 | . 150 192 325 363 309 820 550 475 571 937 438 Wait 626 | . 6 17 55 27 . 125 31 . 264 35 66 Move 3998 | . 134 151 222 253 281 595 428 465 265 875 329 Hop . | . . . . . . . . . . . . Pick Up 78 | . . 2 3 16 5 19 13 2 4 3 11 Fast Attach 47 | . 1 1 7 2 1 5 12 1 1 11 5 Attach 31 | . . 2 2 1 2 4 8 2 2 2 6 Detach 16 | . . 1 4 1 2 1 4 . . 1 2 Swap 49 | . . 4 6 6 3 16 9 . 2 . 3 Drop 84 | . . . 1 17 8 28 19 . 3 7 1 Fire 136 | . 9 14 25 39 5 15 2 . 27 . . Melee 63 | . . . . 1 2 12 24 5 3 1 15 Ram 2 | . . . . . . . . . . 2 . Kick . | . . . . . . . . . . . . Crush . | . . . . . . . . . . . . Escape Stasis . | . . . . . . . . . . . . Rewire . | . . . . . . . . . . . . Trap . | . . . . . . . . . . . . Miscellaneous . | . . . . . . . . . . . . Route ------- -11/Scrapyard -10/Materials (discovered 2 exits: [*Mat] / [*Min]) -9/Materials -8/Materials -8/Storage -7/Factory (discovered 2 exits: *Fac x2) -6/Factory -5/Factory -5/Upper Caves -5/Upper Caves -5/Warlord -4/Proximity Caves History --------- Turn | Location | Event 1 | -11/Scrapyard | Discovered new exit (range 0) 1 | -11/Scrapyard | Entered Materials 143 | -10/Materials | Discovered new exit (range 6) 191 | -10/Materials | Discovered new exit (range 4) 195 | -10/Materials | Entered another Materials area 195 | -9/Materials | Evolved 2 slots: Propulsion x1, Weapon x1 392 | -9/Materials | Discovered new exit (range 16) 408 | -9/Materials | Entered another Materials area 408 | -8/Materials | Evolved 2 slots: Utility x2 492 | -8/Materials | Build established: Tank 788 | -8/Materials | Discovered new exit (range 14) 805 | -8/Materials | Entered Storage 1043 | -8/Storage | Build established: Gunner 1169 | -8/Storage | Discovered new exit (range 16) 1240 | -8/Storage | Entered Factory 1240 | -7/Factory | Evolved 2 slots: Utility x2 1333 | -7/Factory | Discovered new exit (range 13) 1546 | -7/Factory | Discovered new exit (range 6) 1568 | -7/Factory | Entered another Factory area 1568 | -6/Factory | Evolved 2 slots: Utility x2 1753 | -6/Factory | Spotted B-75 Beast 2042 | -6/Factory | Discovered new exit (range 19) 2452 | -6/Factory | Entered another Factory area 2452 | -5/Factory | Evolved 2 slots: Utility x2 2686 | -5/Factory | Build established: Gladiator 2723 | -5/Factory | Discovered new exit (range 6) 2889 | -5/Factory | Destroyed 7 combat bots 2890 | -5/Factory | Lost 4 parts (1n2u1w) 3079 | -5/Factory | Lost 3 parts (3u) 3118 | -5/Factory | Entered Upper Caves 3251 | -5/Upper Caves | Learned location of Armory (-4) 3358 | -5/Upper Caves | Learned Factory interactive machine intel 3589 | -5/Upper Caves | Spotted B-75 Beast 3681 | -5/Upper Caves | Discovered new exit (range 11) 3693 | -5/Upper Caves | Entered another Upper Caves area 3705 | -5/Upper Caves | Encountered a Warlord checkpoint 3838 | -5/Upper Caves | Learned Factory security intel 4345 | -5/Upper Caves | Discovered new exit (range 7) 4351 | -5/Upper Caves | Entered Warlord 4361 | -5/Warlord | Lost 3 parts (1n2u) 4394 | -5/Warlord | System corruption cleaned by Quarantine Array 4613 | -5/Warlord | Met Warlord 4627 | -5/Warlord | Learned location of Command (-1) 4628 | -5/Warlord | Learned 4 Armory zone layouts 4628 | -5/Warlord | Learned 4 Armory zone layouts 4630 | -5/Warlord | Learned Armory security intel 4630 | -5/Warlord | Learned Research terminal intel 4630 | -5/Warlord | Learned Research fabricator intel 4630 | -5/Warlord | Learned Research garrison access intel 4638 | -5/Warlord | Warlord's base attacked by MAIN.C 4888 | -5/Warlord | Found Prototype Piercing Weapon 4888 | -5/Warlord | Identified Vortex Lance 4891 | -5/Warlord | Found Vortex Lance 4988 | -5/Warlord | Warlord forces counterattacked 5092 | -5/Warlord | Opened side exit 5143 | -5/Warlord | Spotted Striker 5145 | -5/Warlord | Spotted Striker 5184 | -5/Warlord | Lost 9 allies 5218 | -5/Warlord | Lost 4 parts (1p2u1w) 5313 | -5/Warlord | Warlord base infiltrated, sounded retreat 5527 | -5/Warlord | Discovered new exit (range 13) 5538 | -5/Warlord | Spotted Executioner 5538 | -5/Warlord | Spotted Striker 5553 | -5/Warlord | Core integrity fell below 50% 5554 | -5/Warlord | Entered Proximity Caves 5585 | -4/Proximity Caves | Lost 9 parts (1p1n5u2w) 5658 | -4/Proximity Caves | Core integrity fell below 20% 5684 | -4/Proximity Caves | Lost 4 parts (1p1n2u) 5961 | -4/Proximity Caves | Build established: Mutant 6058 | -4/Proximity Caves | Spotter reported a threat 6066 | -4/Proximity Caves | Spotter reported a threat 6141 | -4/Proximity Caves | Spotter reported a threat 6258 | -4/Proximity Caves | Spotter reported a threat 6271 | -4/Proximity Caves | Destroyed by S-27 Virus with Autogun Last Messages --------------- 06118_ N-01 Spotter destroyed. 06121_ Acquired Unknown Hover Unit. 06121_ Identified Hover Unit. 06134_ System corrupted: Heat flow error (+211). 06139_ N-01 Spotter is scanning... 06141_ ALERT: Unidentified potential threat approaching Complex 0b10. 06153_ System corrupted: Energy discharge (-61). 06202_ 9AN#HV1BQSR4C61U5XA%KJWEL2UF3P 06232_ System corrupted: Energy discharge (-37). 06256_ N-01 Spotter is scanning... 06258_ N-01 Spotter sends a signal. 06258_ ALERT: Unidentified potential threat approaching Complex 0b10. 06265_ Plasma Lance destroyed. 06268_ Destroyed Lgt. Nuclear Core. 06270_ S-27 Virus suffers critical hit (Sunder). 06270_ S-27 Virus VTOL Module ripped off. 06270_ S-27 Virus Autogun ripped off. 06270_ S-27 Virus destroyed. Map ----- +----------------------------------------------------+ | ##### ## ## #?????? | | ## ### ##?# #????? | | ## ## #???# #???? | | ### ####?# #???? | | #####?# ## ## ##?###???? | | ####?????#### ##### ####????? | | ###???????????## ## #???## #????? | | ???????????????## ###### ###??# #????? | | ????????????????## ##????### ### #????? | | ?????????????????#####??????## ##????? | | ????????????????????????????# ##????? | | ?????????????????????????# ## #????? | | ????????????????????????# ?# #????? | | ????????????????????????# ??# ##????? | | ????????????????????????## ??# ##????? | | ?????????????????##?????##### #??## #????? | | ??????????????#### ####?????# #???## #????? | | ??????????????## ##???# #????## ##????? | | #?????????????# ##??# #?????## ##????? | | ??????????????????# #### ######### #????? | | ???????????????????# #?# ##???? | | ?????????????????#???# ### #???? | | ????????????????## ??## ######### ###???? | | ????????????????# ??## ######??# ##????? | | ????????????????# #?## s## ##?#### #????? | | ????????????????# ## @=[ #????# #???? | | ?????????????????# = ##???### #???? | | ?????????????????## s## s #?????## ##???? | | ??????????????????# #### ##?????#####????? | | ??????????????????## ##??### ###????????????? | | ???????????????????###??????# #????????????? | | ????????????????????????????# #???????????? | | ????????????????????????? ?????????? | | ????????????????????? ??????? | | ????????????????????###### ###?????? | | ?????????????????????????# #???????? | | ?????????????????????????# " #???????? | | ?????????????????????????# " " #???????? | | ?????????????????????????# "" " ??????? | | ?????????????????????????# " """ ?????? | | ?????????????????????????# "" ?????? | | ?????????????????????????# " ????? | | ?????????????????????????# " " ???? | | ?????????????????????????# """""" ??? | | ?????????????????????????# " ? ?? | | ?????????????????????????# """ " ? ? | | ????????????????????????? ? "" " ?? ## ? | | ????????????????????????? ??"? " ?" ???? ##???? | | ?????????????????????????????? ?? ??"???? ?????? | | ?????????????????????????????????? ??????????????? | +----------------------------------------------------+ Best States ------------- Heat Dissipation 67 Energy Generation 21 Energy Capacity 315 Matter Stores 300 Matter Capacity 300 Sight Range 22 Robot Scan Range 15 Terrain Scan Range 20 Terrain Scan Density 10 EM Shielding 2 Armor Coverage 750 Power Shielding 66 Propulsion Shielding 33 Weapon Cycling 30 Melee Speed Boost 40 Phase Shifting 5 Evasion (%) 55 Recoil Reduction 2 Item Schematics ----------------- None Robot Schematics ------------------ None Fabricated ------------ Nothing Alien Tech Used ----------------- None Achievements -------------- None Challenges ------------ None Game ------ Seed GuidedEnergyWell Manual? 0 Play Time 00:50:54 Cumulative 251.1 hours Start 2024.04.19 @ 12:34:52 End 2024.04.19 @ 13:25:17 Sessions 1 Manual Loads 0 Difficulty Rogue Special Mode None Game No. 159 Rogue 159 Adventurer 0 Explorer 0 Win Type - Total 2 Types 2/0/0/0/0/0/0/0/0 Lore% 50 Gallery% 71 Achievement% 57 Wizard Run 0 Options --------- Layout 1 ASCII 0 Keyboard 1 Movement Numpad Keybinds 0 Fullscreen 1 Font 32/SmallcapsGlow Map View 50x35 Zoom Use 0% Tactical HUD 1 Map Filters NONE Filters NONE Steam 1 RUN: 85d6581a-cdef-42af-bdfb-324f1c6c753f